[Event "57th Biel Festival MTO 2024"]
[White "Mostertman,Milan"]
[Black "Pisan,Kai"]
[Site "Biel"]
[Round "5.45"]
[Annotator "RC"]
[Result "1-0"]
[Date "2024.07.19"]
[WhiteElo "2231"]
[BlackElo "1950"]
[PlyCount "135"]
[TimeControl "60"]

1. e4 {[%emt 0:0:4]} c6 {[%emt 0:0:8]} 2. d4 {[%emt 0:0:6]} d5 {[%emt 0:0:7]} 3. e5 {[%emt 0:0:8]} Bf5 {[%emt 0:0:7]} 4. h4 {[%emt 0:0:19]} h5 {[%emt 0:0:10]} 5. Bd3 {[%emt 0:0:24]} Bxd3 {[%emt 0:0:9]} 6. Qxd3 {[%emt 0:0:5]} Qa5+ {[%emt 0:0:6]} 7. Nd2 {[%emt 0:0:55]} e6 {[%emt 0:0:9]} 8. Ngf3 {[%emt 0:0:16]} Nh6 {[%emt 0:0:14]} 9. O-O {[%emt 0:0:48]} Nf5 {[%emt 0:0:6]} 10. c4 {[%emt 0:0:50]} Be7 {[%emt 0:0:8]} 11. g3 {[%emt 0:3:11]} O-O {[%emt 0:0:16]} 12. b3 {[%emt 0:1:11]} Rd8 {[%emt 0:0:35]} 13. Bb2 {[%emt 0:22:0]} c5 {[%emt 0:1:25]} 14. dxc5 {[%emt 0:1:24]} dxc4 {[%emt 0:3:33]} 15. Qxc4 {[%emt 0:7:38]} Qxc5 {[%emt 0:9:38]} 16. Qxc5 {[%emt 0:1:18]} Bxc5 {[%emt 0:1:9]} 17. Rac1 {[%emt 0:0:12]} Na6 {[%emt 0:5:56]} 18. Kg2 {[%emt 0:2:46]} Rac8 {[%emt 0:2:22]} 19. a3 {[%emt 0:0:32]} Be7 {[%emt 0:7:9]} 20. b4 {[%emt 0:2:25]} Nc7 {[%emt 0:2:53]} 21. Rc4 {[%emt 0:6:9]} Nd5 {[%emt 0:5:46]} 22. Rfc1 {[%emt 0:4:22]} Rxc4 {[%emt 0:3:8]} 23. Nxc4 {[%emt 0:0:25]} Rc8 {[%emt 0:1:47]} 24. Na5 {[%emt 0:1:33]} Rxc1 {[%emt 0:13:44]} 25. Bxc1 {[%emt 0:0:51]} b6 {[%emt 0:2:45]} 26. Nc6 {[%emt 0:0:6]} a6 {[%emt 0:1:30]} 27. Kf1 {[%emt 0:14:2]} Kf8 {[%emt 0:4:30]} 28. Bg5 {[%emt 0:14:7]} Bxg5 {[%emt 0:3:22]} 29. Nxg5 {[%emt 0:0:47]} Ke8 {[%emt 0:3:15]} 30. Nb8 {[%emt 0:8:22]} Nc7 {[%emt 0:12:27]} 31. Ke2 {[%emt 0:3:1]} f6 {[%emt 0:5:42]} 32. exf6 {[%emt 0:1:24]} gxf6 {[%emt 0:0:16]} 33. Ne4 {[%emt 0:0:2]} Ke7 {[%emt 0:1:32]} 34. Kd3 {[%emt 0:5:16]} e5 {[%emt 0:4:33]} 35. a4 {[%emt 0:4:47]} Nd4 {[%emt 0:4:53]} 36. Kc4 {[%emt 0:2:25]} f5 {[%emt 0:2:15]} 37. Ng5 {[%emt 0:1:51]} Kd6 {[%emt 0:3:52]} 38. Nf7+ {[%emt 0:0:52]} Ke6 {[%emt 0:0:31]} 39. Ng5+ {[%emt 0:0:22]} Kd6 {[%emt 0:3:0]} 40. Nf7+ {[%emt 0:0:42]} Ke6 {[%emt 0:1:0]} 41. Nd8+ {[%emt 0:4:38]} Ke7 {[%emt 0:5:17]} 42. Nb7 {[%emt 0:9:49]} Nde6 {[%emt 0:15:36]} 43. Nc6+ {[%emt 0:5:0]} Kf6 {[%emt 0:0:33]} 44. Nd6 {[%emt 0:0:41]} Nf8 {[%emt 0:7:22]} 45. Nb8 {[%emt 0:9:55]} Nfe6 {[%emt 0:7:20]} 46. b5 {[%emt 0:3:27]} axb5+ {[%emt 0:2:33]} 47. Nxb5 {[%emt 0:0:5]} Nxb5 {[%emt 0:5:13]} 48. Kxb5 {[%emt 0:11:58]} Nc5 {[%emt 0:5:38]} 49. a5 {[%emt 0:0:30]} bxa5 {[%emt 0:0:56]} 50. Kxc5 {[%emt 0:0:3]} f4 {[%emt 0:2:22]} 51. gxf4 {[%emt 0:2:26]} Kf5 {[%emt 0:1:21]} 52. fxe5 {[%emt 0:3:43]} Kxe5 {[%emt 0:0:6]} 53. Nd7+ {[%emt 0:4:38]} Kf5 {[%emt 0:0:30]} 54. Kd4 {[%emt 0:1:36]} a4 {[%emt 0:1:47]} 55. Kc3 {[%emt 0:0:49]} Kg4 {[%emt 0:1:29]} 56. Ne5+ {[%emt 0:0:8]} Kxh4 {[%emt 0:1:51]} 57. f4 {[%emt 0:1:0]} Kg3 {[%emt 0:0:1]} 58. f5 {[%emt 0:0:14]} h4 {[%emt 0:0:11]} 59. f6 {[%emt 0:0:12]} h3 {[%emt 0:0:11]} 60. Nf3 {[%emt 0:0:4]} Kxf3 {[%emt 0:0:23]} 61. f7 {[%emt 0:15:4]} h2 {[%emt 0:15:46]} 62. f8=Q+ {[%emt 0:0:0]} Kg2 {[%emt 0:0:0]} 63. Qg7+ {[%emt 0:0:0]} Kf2 {[%emt 0:0:0]} 64. Qf6+ {[%emt 0:0:0]} Kg1 {[%emt 0:0:0]} 65. Qg5+ {[%emt 0:0:0]} Kf1 {[%emt 0:0:0]} 66. Qf4+ {[%emt 0:0:0]} Kg1 {[%emt 0:0:0]} 67. Qg3+ {[%emt 0:0:0]} Kh1 {[%emt 0:0:0]} 68. Qf2 {[%emt 0:0:0]} 1-0

[Event "57th Biel Festival MTO 2024"]
[White "Haugner,Jan"]
[Black "Ohler,Julius"]
[Site "Biel"]
[Round "5.46"]
[Annotator "RC"]
[Result "1-0"]
[Date "2024.07.19"]
[WhiteElo "2072"]
[BlackElo "2078"]
[PlyCount "69"]
[TimeControl "60"]

1. e4 {[%emt 0:0:15]} c6 {[%emt 0:0:14]} 2. d4 {[%emt 0:0:0]} d5 {[%emt 0:0:4]} 3. e5 {[%emt 0:0:0]} Bf5 {[%emt 0:0:4]} 4. h4 {[%emt 0:0:0]} h5 {[%emt 0:0:4]} 5. Bd3 {[%emt 0:0:2]} Bxd3 {[%emt 0:0:5]} 6. Qxd3 {[%emt 0:0:5]} e6 {[%emt 0:0:3]} 7. Bg5 {[%emt 0:0:5]} Be7 {[%emt 0:0:12]} 8. Nf3 {[%emt 0:0:7]} Nh6 {[%emt 0:2:35]} 9. Nc3 {[%emt 0:0:14]} Nf5 {[%emt 0:1:14]} 10. Ne2 {[%emt 0:0:11]} Qa5+ {[%emt 0:3:48]} 11. c3 {[%emt 0:5:20]} Qa6 {[%emt 0:0:29]} 12. Qd2 {[%emt 0:3:44]} Nd7 {[%emt 0:6:55]} 13. Bxe7 {[%emt 0:10:18]} Nxe7 {[%emt 0:1:25]} 14. O-O {[%emt 0:0:49]} Nf8 {[%emt 0:23:57]} 15. Ng3 {[%emt 0:6:56]} Nfg6 {[%emt 0:0:30]} 16. Qg5 {[%emt 0:0:30]} O-O-O {[%emt 0:0:30]} 17. a4 {[%emt 0:0:30]} Qa5 {[%emt 0:14:11]} 18. b4 {[%emt 0:16:55]} Qc7 {[%emt 0:0:30]} 19. b5 {[%emt 0:0:30]} c5 {[%emt 0:0:30]} 20. dxc5 {[%emt 0:0:30]} Qxc5 {[%emt 0:0:30]} 21. c4 {[%emt 0:0:30]} Kb8 {[%emt 0:0:30]} 22. Rfc1 {[%emt 0:0:30]} dxc4 {[%emt 0:0:30]} 23. Ne4 {[%emt 0:0:30]} Qc7 {[%emt 0:0:30]} 24. Nd6 {[%emt 0:25:31]} Nd5 {[%emt 0:21:9]} 25. Rxc4 {[%emt 0:3:35]} Qd7 {[%emt 0:0:6]} 26. Rac1 {[%emt 0:3:32]} Rhf8 {[%emt 0:2:25]} 27. Nd4 {[%emt 0:6:42]} Qe7 {[%emt 0:10:19]} 28. Qg3 {[%emt 0:1:20]} Ngf4 {[%emt 0:12:58]} 29. Qb3 {[%emt 0:5:38]} Rxd6 {[%emt 0:3:52]} 30. exd6 {[%emt 0:0:57]} Qxd6 {[%emt 0:0:5]} 31. g3 {[%emt 0:4:9]} Ng6 {[%emt 0:0:30]} 32. Nc6+ {[%emt 0:0:30]} Ka8 {[%emt 0:0:30]} 33. Nb4 {[%emt 0:0:30]} Nge7 {[%emt 0:0:30]} 34. Nxd5 {[%emt 0:0:30]} Qxd5 {[%emt 0:0:30]} 35. Qc3 {[%emt 0:0:30]} 1-0

[Event "57th Biel Festival MTO 2024"]
[White "Khulan,Enkhsaikhan"]
[Black "Kersten,Uwe"]
[Site "Biel"]
[Round "5.47"]
[Annotator "ChessBase"]
[Result "1/2-1/2"]
[Date "2024.07.19"]
[WhiteElo "2063"]
[BlackElo "2189"]
[PlyCount "113"]
[TimeControl "60"]

1. c4 {[%emt 0:0:5]} Nf6 {[%emt 0:0:52]} 2. Nc3 {[%emt 0:0:11]} e6 {[%emt 0:1:35]} 3. Nf3 {[%emt 0:1:7]} c5 {[%emt 0:1:30]} 4. d4 {[%emt 0:0:43]} cxd4 {[%emt 0:1:28]} 5. Nxd4 {[%emt 0:0:8]} a6 {[%emt 0:0:24]} 6. e4 {[%emt 0:1:24]} Qc7 {[%emt 0:1:20]} 7. Bd3 {[%emt 0:1:36]} Nc6 {[%emt 0:2:12]} 8. Nxc6 {[%emt 0:1:23]} dxc6 {[%emt 0:0:26]} 9. O-O {[%emt 0:0:49]} e5 {[%emt 0:6:13]} 10. h3 {[%emt 0:1:8]} Bc5 {[%emt 0:1:32]} 11. Bg5 {[%emt 0:5:15]} Nd7 {[%emt 0:1:34]} 12. Rc1 {[%emt 0:1:33]} Nf8 {[%emt 0:16:10]} 13. Na4 {[%emt 0:0:43]} Ne6 {[%emt 0:7:58]} 14. Nxc5 {[%emt 0:1:7]} Nxg5 {[%emt 0:0:8]} 15. b4 {[%emt 0:1:7]} O-O {[%emt 0:4:1]} 16. Qh5 {[%emt 0:2:6]} Ne6 {[%emt 0:1:31]} 17. Nxe6 {[%emt 0:1:42]} Bxe6 {[%emt 0:0:4]} 18. a3 {[%emt 0:0:46]} Rfd8 {[%emt 0:1:50]} 19. Qe2 {[%emt 0:2:1]} c5 {[%emt 0:4:24]} 20. Rb1 {[%emt 0:2:35]} b6 {[%emt 0:13:25]} 21. Qc2 {[%emt 0:5:48]} Rd4 {[%emt 0:2:15]} 22. Rfc1 {[%emt 0:4:2]} Rad8 {[%emt 0:14:25]} 23. Bf1 {[%emt 0:0:51]} g6 {[%emt 0:9:19]} 24. Qa4 {[%emt 0:4:22]} Bc8 {[%emt 0:1:44]} 25. Re1 {[%emt 0:3:53]} Bb7 {[%emt 0:1:41]} 26. f3 {[%emt 0:4:38]} Bc6 {[%emt 0:3:17]} 27. Qb3 {[%emt 0:0:50]} Qd6 {[%emt 0:1:2]} 28. bxc5 {[%emt 0:2:39]} bxc5 {[%emt 0:0:2]} 29. Qe3 {[%emt 0:0:35]} Rb8 {[%emt 0:1:22]} 30. h4 {[%emt 0:4:48]} h5 {[%emt 0:0:34]} 31. Qc3 {[%emt 0:2:19]} Rxb1 {[%emt 0:2:3]} 32. Rxb1 {[%emt 0:0:8]} Qd8 {[%emt 0:0:8]} 33. Qb3 {[%emt 0:0:53]} Qf6 {[%emt 0:5:48]} 34. Qb8+ {[%emt 0:4:27]} Rd8 {[%emt 0:0:39]} 35. Qc7 {[%emt 0:0:18]} Be8 {[%emt 0:4:16]} 36. Qxc5 {[%emt 0:1:29]} Qxh4 {[%emt 0:0:46]} 37. Qxe5 {[%emt 0:0:26]} Rc8 {[%emt 0:0:27]} 38. c5 {[%emt 0:1:11]} Qd8 {[%emt 0:0:8]} 39. Bxa6 {[%emt 0:0:30]} Ra8 {[%emt 0:0:39]} 40. Bf1 {[%emt 0:3:6]} Bc6 {[%emt 0:0:44]} 41. Bc4 {[%emt 0:56:16]} Qd2 {[%emt 0:2:57]} 42. Bd5 {[%emt 0:0:0]} Re8 {[%emt 0:15:1]} 43. Qd6 {[%emt 0:0:0]} Bxd5 {[%emt 0:7:25]} 44. Qxd5 {[%emt 0:0:0]} Qe3+ {[%emt 0:3:35]} 45. Kh2 {[%emt 0:0:0]} Qf4+ {[%emt 0:6:39]} 46. Kh1 {[%emt 0:0:0]} h4 {[%emt 0:0:20]} 47. Qd6 {[%emt 0:0:0]} Re5 {[%emt 0:4:41]} 48. Rb8+ {[%emt 0:0:0]} Kh7 {[%emt 0:0:52]} 49. Qd8 {[%emt 0:0:0]} Qc1+ {[%emt 0:0:52]} 50. Kh2 {[%emt 0:0:0]} Qf4+ {[%emt 0:0:15]} 51. Kg1 {[%emt 0:0:0]} Qc1+ {[%emt 0:1:24]} 52. Kf2 {[%emt 0:0:0]} Qxc5+ {[%emt 0:1:9]} 53. Ke2 {[%emt 0:0:0]} Qc2+ {[%emt 0:3:38]} 54. Ke3 {[%emt 0:0:0]} Qc1+ {[%emt 0:2:0]} 55. Ke2 {[%emt 0:0:0]} Qc2+ {[%emt 0:0:28]} 56. Ke3 {[%emt 0:0:26]} Qc1+ {[%emt 0:0:17]} 57. Ke2 {[%emt 0:0:45]} 1/2-1/2

[Event "57th Biel Festival MTO 2024"]
[White "Asllani,Dorian"]
[Black "Panda,Barnabas"]
[Site "Biel"]
[Round "5.48"]
[Annotator "RC"]
[Result "0-1"]
[Date "2024.07.19"]
[WhiteElo "2154"]
[BlackElo "2074"]
[PlyCount "146"]
[TimeControl "60"]

1. Nf3 {[%emt 0:0:57]} Nf6 {[%emt 0:0:17]} 2. c4 {[%emt 0:1:8]} e6 {[%emt 0:0:22]} 3. e3 {[%emt 0:0:24]} d5 {[%emt 0:0:53]} 4. b3 {[%emt 0:0:15]} c5 {[%emt 0:1:35]} 5. Bb2 {[%emt 0:1:35]} Nc6 {[%emt 0:1:6]} 6. cxd5 {[%emt 0:5:13]} exd5 {[%emt 0:0:43]} 7. Bb5 {[%emt 0:2:49]} Bd6 {[%emt 0:21:27]} 8. O-O {[%emt 0:10:3]} O-O {[%emt 0:4:50]} 9. h3 {[%emt 0:6:12]} Qe7 {[%emt 0:5:24]} 10. Re1 {[%emt 0:12:7]} Bf5 {[%emt 0:15:9]} 11. Bxc6 {[%emt 0:9:17]} bxc6 {[%emt 0:0:11]} 12. d4 {[%emt 0:0:34]} Ne4 {[%emt 0:5:43]} 13. Nbd2 {[%emt 0:6:39]} Rfe8 {[%emt 0:7:25]} 14. Rc1 {[%emt 0:7:38]} Rac8 {[%emt 0:8:48]} 15. Qe2 {[%emt 0:5:28]} Nxd2 {[%emt 0:7:59]} 16. Qxd2 {[%emt 0:3:14]} Be4 {[%emt 0:0:44]} 17. dxc5 {[%emt 0:4:2]} Bxf3 {[%emt 0:0:22]} 18. gxf3 {[%emt 0:2:5]} Bxc5 {[%emt 0:4:18]} 19. Qc3 {[%emt 0:6:4]} Qg5+ {[%emt 0:0:7]} 20. Kh2 {[%emt 0:0:18]} Bf8 {[%emt 0:0:22]} 21. Rg1 {[%emt 0:0:13]} Qh6 {[%emt 0:0:17]} 22. Rg4 {[%emt 0:3:18]} Re6 {[%emt 0:5:3]} 23. Rcg1 {[%emt 0:0:41]} Rg6 {[%emt 0:0:10]} 24. Rxg6 {[%emt 0:1:17]} hxg6 {[%emt 0:0:8]} 25. Qd4 {[%emt 0:9:14]} Qh5 {[%emt 0:1:36]} 26. Rg4 {[%emt 0:4:47]} Qf5 {[%emt 0:3:25]} 27. Kg2 {[%emt 0:0:6]} c5 {[%emt 0:1:11]} 28. Qc3 {[%emt 0:0:45]} Re8 {[%emt 0:3:28]} 29. Ba3 {[%emt 0:2:50]} Rc8 {[%emt 0:7:57]} 30. Bb2 {[%emt 0:2:31]} Qb1 {[%emt 0:0:56]} 31. Ra4 {[%emt 0:0:52]} Rc7 {[%emt 0:1:24]} 32. Qd2 {[%emt 0:2:2]} Qf5 {[%emt 0:0:20]} 33. e4 {[%emt 0:0:44]} dxe4 {[%emt 0:0:35]} 34. fxe4 {[%emt 0:0:2]} Qe6 {[%emt 0:0:15]} 35. Qf4 {[%emt 0:1:4]} Rd7 {[%emt 0:1:18]} 36. Qe5 {[%emt 0:0:58]} Qc6 {[%emt 0:0:24]} 37. Rc4 {[%emt 0:0:59]} Rd3 {[%emt 0:1:4]} 38. Rc3 {[%emt 0:0:32]} Rd2 {[%emt 0:1:12]} 39. Rf3 {[%emt 0:0:30]} Re2 {[%emt 0:0:53]} 40. Re3 {[%emt 0:0:31]} Rxe3 {[%emt 0:0:37]} 41. fxe3 {[%emt 0:50:1]} Qa6 {[%emt 0:0:32]} 42. Qc3 {[%emt 0:0:0]} Qxa2 {[%emt 0:0:59]} 43. e5 {[%emt 0:0:0]} Qb1 {[%emt 0:3:57]} 44. Ba3 {[%emt 0:0:0]} Qe4+ {[%emt 0:1:3]} 45. Kh2 {[%emt 0:0:0]} Qd5 {[%emt 0:1:50]} 46. Bb2 {[%emt 0:0:0]} Be7 {[%emt 0:9:44]} 47. Ba3 {[%emt 0:0:0]} f6 {[%emt 0:5:13]} 48. Qc4 {[%emt 0:0:0]} Qxc4 {[%emt 0:1:2]} 49. bxc4 {[%emt 0:0:0]} Kf7 {[%emt 0:1:35]} 50. exf6 {[%emt 0:0:0]} gxf6 {[%emt 0:0:10]} 51. Kg3 {[%emt 0:0:0]} Ke6 {[%emt 0:1:43]} 52. Kf4 {[%emt 0:0:0]} g5+ {[%emt 0:3:58]} 53. Kf3 {[%emt 0:0:0]} f5 {[%emt 0:0:50]} 54. Bc1 {[%emt 0:3:31]} a5 {[%emt 0:2:1]} 55. Ba3 {[%emt 0:3:9]} a4 {[%emt 0:1:30]} 56. Ke2 {[%emt 0:0:57]} g4 {[%emt 0:1:45]} 57. hxg4 {[%emt 0:0:12]} fxg4 {[%emt 0:0:5]} 58. e4 {[%emt 0:0:49]} g3 {[%emt 0:3:32]} 59. Bb2 {[%emt 0:0:50]} Bf6 {[%emt 0:3:20]} 60. Bc1 {[%emt 0:0:27]} Be5 {[%emt 0:7:57]} 61. Kf3 {[%emt 0:3:43]} Kf6 {[%emt 0:3:51]} 62. Kg2 {[%emt 0:6:49]} Bc3 {[%emt 0:2:38]} 63. Ba3 {[%emt 0:0:50]} Ke5 {[%emt 0:0:26]} 64. Bxc5 {[%emt 0:0:50]} Kxe4 {[%emt 0:0:40]} 65. Kxg3 {[%emt 0:1:5]} Kd3 {[%emt 0:0:10]} 66. Kf3 {[%emt 0:1:37]} Kxc4 {[%emt 0:0:7]} 67. Ba3 {[%emt 0:2:11]} Kb3 {[%emt 0:0:23]} 68. Bd6 {[%emt 0:1:58]} Bb4 {[%emt 0:0:8]} 69. Be5 {[%emt 0:0:27]} a3 {[%emt 0:0:5]} 70. Ke2 {[%emt 0:0:23]} Bc3 {[%emt 0:0:7]} 71. Bxc3 {[%emt 0:0:5]} Kxc3 {[%emt 0:0:4]} 72. Kd1 {[%emt 0:0:3]} a2 {[%emt 0:0:5]} 73. Kc1 {[%emt 0:0:3]} a1=Q# {[%emt 0:0:8]} 0-1

[Event "57th Biel Festival MTO 2024"]
[White "Perreard,Nicolas"]
[Black "Vemparala,Nikash"]
[Site "Biel"]
[Round "5.49"]
[Annotator "RC"]
[Result "1/2-1/2"]
[Date "2024.07.19"]
[WhiteElo "2060"]
[BlackElo "2170"]
[PlyCount "89"]
[TimeControl "60"]

1. d4 {[%emt 0:0:3]} d5 {[%emt 0:0:5]} 2. c4 {[%emt 0:0:4]} e6 {[%emt 0:0:6]} 3. Nf3 {[%emt 0:0:5]} h6 {[%emt 0:0:5]} 4. Nc3 {[%emt 0:0:20]} Nf6 {[%emt 0:0:4]} 5. Bf4 {[%emt 0:0:11]} Bd6 {[%emt 0:0:4]} 6. Bg3 {[%emt 0:0:10]} Bxg3 {[%emt 0:0:9]} 7. hxg3 {[%emt 0:0:7]} O-O {[%emt 0:1:24]} 8. e3 {[%emt 0:0:16]} Nbd7 {[%emt 0:0:19]} 9. Bd3 {[%emt 0:1:31]} dxc4 {[%emt 0:5:57]} 10. Bxc4 {[%emt 0:0:10]} c5 {[%emt 0:0:43]} 11. O-O {[%emt 0:11:10]} b6 {[%emt 0:5:19]} 12. e4 {[%emt 0:0:0]} Bb7 {[%emt 0:3:46]} 13. e5 {[%emt 0:0:0]} Ne4 {[%emt 0:1:30]} 14. Rc1 {[%emt 0:0:48]} cxd4 {[%emt 0:5:46]} 15. Qxd4 {[%emt 0:0:8]} Ndc5 {[%emt 0:1:20]} 16. Rfd1 {[%emt 0:0:57]} Qxd4 {[%emt 0:2:0]} 17. Rxd4 {[%emt 0:2:34]} Rfd8 {[%emt 0:5:52]} 18. b4 {[%emt 0:2:31]} Rxd4 {[%emt 0:15:9]} 19. Nxd4 {[%emt 0:0:10]} Nd7 {[%emt 0:0:17]} 20. Nxe4 {[%emt 0:3:53]} Bxe4 {[%emt 0:0:3]} 21. Re1 {[%emt 0:0:26]} Bd5 {[%emt 0:7:43]} 22. Bxd5 {[%emt 0:2:6]} exd5 {[%emt 0:0:2]} 23. Nc6 {[%emt 0:1:31]} a5 {[%emt 0:8:8]} 24. bxa5 {[%emt 0:4:30]} bxa5 {[%emt 0:0:11]} 25. e6 {[%emt 0:0:9]} fxe6 {[%emt 0:0:55]} 26. Rxe6 {[%emt 0:0:10]} Nf6 {[%emt 0:1:16]} 27. Rd6 {[%emt 0:3:50]} Kf7 {[%emt 0:2:31]} 28. a4 {[%emt 0:0:14]} Re8 {[%emt 0:2:17]} 29. f3 {[%emt 0:0:21]} Re1+ {[%emt 0:0:40]} 30. Kf2 {[%emt 0:0:27]} Ra1 {[%emt 0:0:5]} 31. Nxa5 {[%emt 0:0:20]} Rxa4 {[%emt 0:0:9]} 32. Nc6 {[%emt 0:0:35]} Ra2+ {[%emt 0:0:20]} 33. Kg1 {[%emt 0:0:27]} Rd2 {[%emt 0:1:16]} 34. g4 {[%emt 0:0:13]} Kg6 {[%emt 0:4:57]} 35. Kh2 {[%emt 0:0:33]} Kg5 {[%emt 0:3:7]} 36. Ne5 {[%emt 0:2:2]} Kf4 {[%emt 0:2:43]} 37. Re6 {[%emt 0:2:49]} h5 {[%emt 0:5:31]} 38. Kh3 {[%emt 0:1:53]} hxg4+ {[%emt 0:0:54]} 39. fxg4 {[%emt 0:0:8]} Ne4 {[%emt 0:3:25]} 40. Re7 {[%emt 0:2:7]} g5 {[%emt 0:1:10]} 41. g3+ {[%emt 0:51:42]} Ke3 {[%emt 0:50:51]} 42. Nc4+ {[%emt 0:0:7]} dxc4 {[%emt 0:2:17]} 43. Rxe4+ {[%emt 0:0:2]} Kd3 {[%emt 0:1:7]} 44. Rd4+ {[%emt 0:0:11]} Kc3 {[%emt 0:0:11]} 45. Rxc4+ {[%emt 0:0:4]} 1/2-1/2

[Event "57th Biel Festival MTO 2024"]
[White "Woltery,Nicolai"]
[Black "Coles,Ruben"]
[Site "Biel"]
[Round "5.50"]
[Annotator "RC"]
[Result "1/2-1/2"]
[Date "2024.07.19"]
[WhiteElo "2016"]
[BlackElo "2141"]
[PlyCount "126"]
[TimeControl "60"]

1. d4 {[%emt 0:0:2]} d5 {[%emt 0:2:4]} 2. c4 {[%emt 0:0:6]} e6 {[%emt 0:0:5]} 3. Nc3 {[%emt 0:1:13]} Nf6 {[%emt 0:0:5]} 4. cxd5 {[%emt 0:0:5]} exd5 {[%emt 0:0:4]} 5. Bg5 {[%emt 0:0:8]} c6 {[%emt 0:0:5]} 6. e3 {[%emt 0:0:13]} h6 {[%emt 0:0:7]} 7. Bh4 {[%emt 0:0:20]} Be7 {[%emt 0:0:4]} 8. Bd3 {[%emt 0:0:14]} O-O {[%emt 0:0:7]} 9. Qc2 {[%emt 0:0:49]} Re8 {[%emt 0:0:9]} 10. Nge2 {[%emt 0:0:45]} Nbd7 {[%emt 0:4:52]} 11. O-O {[%emt 0:0:41]} Ne4 {[%emt 0:0:25]} 12. Bxe7 {[%emt 0:2:41]} Qxe7 {[%emt 0:0:7]} 13. Rae1 {[%emt 0:4:29]} Ndf6 {[%emt 0:10:42]} 14. f3 {[%emt 0:8:49]} Nxc3 {[%emt 0:3:19]} 15. Nxc3 {[%emt 0:0:5]} c5 {[%emt 0:5:16]} 16. dxc5 {[%emt 0:2:21]} Qxc5 {[%emt 0:1:37]} 17. Nb5 {[%emt 0:0:20]} Qxc2 {[%emt 0:0:33]} 18. Bxc2 {[%emt 0:0:1]} Re7 {[%emt 0:11:2]} 19. Nd4 {[%emt 0:10:29]} Bd7 {[%emt 0:9:6]} 20. Kf2 {[%emt 0:2:29]} Rc8 {[%emt 0:5:57]} 21. Rc1 {[%emt 0:1:31]} Ree8 {[%emt 0:1:37]} 22. Bd3 {[%emt 0:15:9]} Kf8 {[%emt 0:3:34]} 23. Ke2 {[%emt 0:6:22]} Ke7 {[%emt 0:4:9]} 24. Kd2 {[%emt 0:2:19]} Kd6 {[%emt 0:3:55]} 25. a3 {[%emt 0:2:15]} g6 {[%emt 0:9:24]} 26. Rh1 {[%emt 0:10:22]} h5 {[%emt 0:2:23]} 27. h4 {[%emt 0:9:17]} a6 {[%emt 0:1:40]} 28. b4 {[%emt 0:5:23]} Ra8 {[%emt 0:11:46]} 29. Rc5 {[%emt 0:10:1]} b6 {[%emt 0:5:53]} 30. Rc3 {[%emt 0:0:30]} Rec8 {[%emt 0:3:33]} 31. Rxc8 {[%emt 0:5:10]} Bxc8 {[%emt 0:0:11]} 32. a4 {[%emt 0:0:22]} Bd7 {[%emt 0:6:7]} 33. a5 {[%emt 0:0:40]} b5 {[%emt 0:0:45]} 34. Rc1 {[%emt 0:4:36]} Rc8 {[%emt 0:1:51]} 35. Rxc8 {[%emt 0:0:19]} Bxc8 {[%emt 0:0:1]} 36. Kc3 {[%emt 0:0:24]} Nd7 {[%emt 0:0:55]} 37. f4 {[%emt 0:0:44]} f5 {[%emt 0:1:46]} 38. Nf3 {[%emt 0:2:1]} Nf8 {[%emt 0:1:35]} 39. Ne5 {[%emt 0:2:50]} Bb7 {[%emt 0:1:17]} 40. g3 {[%emt 0:1:20]} Bc8 {[%emt 0:0:25]} 41. Be2 {[%emt 0:4:28]} Bb7 {[%emt 0:6:0]} 42. Bf3 {[%emt 0:1:48]} Bc8 {[%emt 0:2:19]} 43. Kd3 {[%emt 0:2:29]} Bb7 {[%emt 0:2:3]} 44. Nf7+ {[%emt 0:0:10]} Ke7 {[%emt 0:0:23]} 45. Ng5 {[%emt 0:5:28]} Ne6 {[%emt 0:1:59]} 46. Bg2 {[%emt 0:9:6]} Nxg5 {[%emt 0:1:12]} 47. fxg5 {[%emt 0:3:3]} Ke6 {[%emt 0:1:19]} 48. Kd4 {[%emt 0:0:6]} Kd6 {[%emt 0:0:5]} 49. Bh1 {[%emt 0:0:7]} Ba8 {[%emt 0:0:7]} 50. Bf3 {[%emt 0:0:5]} Bc6 {[%emt 0:0:4]} 51. Be2 {[%emt 0:0:27]} Bd7 {[%emt 0:0:13]} 52. Bd1 {[%emt 0:0:5]} Be8 {[%emt 0:0:17]} 53. Bb3 {[%emt 0:0:22]} Bf7 {[%emt 0:0:28]} 54. Ba2 {[%emt 0:1:15]} Be6 {[%emt 0:0:13]} 55. Bb1 {[%emt 0:0:13]} Bd7 {[%emt 0:0:56]} 56. Bd3 {[%emt 0:0:7]} Be8 {[%emt 0:0:16]} 57. Be2 {[%emt 0:0:55]} Bd7 {[%emt 0:0:24]} 58. Bf3 {[%emt 0:0:10]} Bc6 {[%emt 0:0:9]} 59. Bh1 {[%emt 0:0:42]} Ba8 {[%emt 0:0:13]} 60. Bg2 {[%emt 0:0:24]} Bb7 {[%emt 0:0:5]} 61. Bh3 {[%emt 0:15:14]} Bc8 {[%emt 0:15:42]} 62. Bf1 {[%emt 0:0:11]} Bd7 {[%emt 0:0:21]} 63. Be2 {[%emt 0:0:6]} Be8 {[%emt 0:0:11]} 1/2-1/2

[Event "57th Biel Festival MTO 2024"]
[White "Bommini Mounika Akshaya"]
[Black "Mata,Adilson"]
[Site "Biel"]
[Round "5.51"]
[Annotator "RC"]
[Result "1-0"]
[Date "2024.07.19"]
[WhiteElo "2140"]
[BlackElo "1971"]
[PlyCount "124"]
[TimeControl "60"]

1. d4 {[%emt 0:10:9]} d5 {[%emt 0:0:18]} 2. Nf3 {[%emt 0:0:36]} Nf6 {[%emt 0:0:25]} 3. c3 {[%emt 0:0:18]} Bf5 {[%emt 0:3:51]} 4. Qb3 {[%emt 0:2:17]} Qc8 {[%emt 0:2:3]} 5. c4 {[%emt 0:7:35]} dxc4 {[%emt 0:12:42]} 6. Qxc4 {[%emt 0:1:0]} Nbd7 {[%emt 0:0:32]} 7. g3 {[%emt 0:6:55]} c5 {[%emt 0:0:36]} 8. Nc3 {[%emt 0:2:35]} cxd4 {[%emt 0:7:31]} 9. Qxc8+ {[%emt 0:4:14]} Rxc8 {[%emt 0:0:6]} 10. Nxd4 {[%emt 0:0:7]} e6 {[%emt 0:3:46]} 11. Bg2 {[%emt 0:5:26]} Bb4 {[%emt 0:0:25]} 12. Bd2 {[%emt 0:0:19]} Bxc3 {[%emt 0:8:36]} 13. Bxc3 {[%emt 0:0:39]} Be4 {[%emt 0:1:6]} 14. f3 {[%emt 0:4:2]} Bc6 {[%emt 0:0:49]} 15. Nxc6 {[%emt 0:17:4]} Rxc6 {[%emt 0:0:3]} 16. f4 {[%emt 0:6:16]} Rc7 {[%emt 0:0:48]} 17. O-O {[%emt 0:0:41]} O-O {[%emt 0:0:7]} 18. Rfd1 {[%emt 0:5:13]} b6 {[%emt 0:3:40]} 19. Rd2 {[%emt 0:7:39]} Nc5 {[%emt 0:2:33]} 20. Be5 {[%emt 0:4:13]} Rd7 {[%emt 0:2:15]} 21. Rad1 {[%emt 0:1:1]} Rfd8 {[%emt 0:10:53]} 22. Rxd7 {[%emt 0:0:57]} Rxd7 {[%emt 0:0:14]} 23. Rxd7 {[%emt 0:0:27]} Ncxd7 {[%emt 0:3:29]} 24. Bd4 {[%emt 0:1:11]} Kf8 {[%emt 0:3:5]} 25. h3 {[%emt 0:1:27]} Ke7 {[%emt 0:1:23]} 26. Kf2 {[%emt 0:0:55]} Kd6 {[%emt 0:0:57]} 27. e4 {[%emt 0:3:42]} e5 {[%emt 0:4:0]} 28. Bc3 {[%emt 0:0:7]} Ng8 {[%emt 0:4:50]} 29. Bb4+ {[%emt 0:4:23]} Kc6 {[%emt 0:1:8]} 30. Bf1 {[%emt 0:3:21]} a5 {[%emt 0:1:25]} 31. Bc3 {[%emt 0:1:19]} f6 {[%emt 0:2:24]} 32. Ke3 {[%emt 0:4:28]} Ne7 {[%emt 0:0:48]} 33. a3 {[%emt 0:3:40]} Kd6 {[%emt 0:3:37]} 34. b4 {[%emt 0:1:15]} axb4 {[%emt 0:0:33]} 35. axb4 {[%emt 0:0:12]} f5 {[%emt 0:5:32]} 36. fxe5+ {[%emt 0:1:9]} Nxe5 {[%emt 0:0:19]} 37. Bd4 {[%emt 0:1:31]} fxe4 {[%emt 0:2:0]} 38. Kxe4 {[%emt 0:0:27]} N5c6 {[%emt 0:0:20]} 39. Bxb6 {[%emt 0:0:33]} Nxb4 {[%emt 0:0:17]} 40. Bd4 {[%emt 0:0:18]} g6 {[%emt 0:1:21]} 41. Be5+ {[%emt 0:50:16]} Kc5 {[%emt 0:55:42]} 42. Bd4+ {[%emt 0:0:36]} Kd6 {[%emt 0:0:20]} 43. Bc4 {[%emt 0:0:0]} Nbc6 {[%emt 0:0:0]} 44. Bb2 {[%emt 0:0:0]} Kd7 {[%emt 0:0:0]} 45. Kf4 {[%emt 0:0:0]} Ke8 {[%emt 0:0:0]} 46. Kg5 {[%emt 0:0:0]} h5 {[%emt 0:0:0]} 47. Kf6 {[%emt 0:0:0]} Nf5 {[%emt 0:0:0]} 48. Bb5 {[%emt 0:0:0]} Kd7 {[%emt 0:0:0]} 49. Be5 {[%emt 0:0:0]} Nfe7 {[%emt 0:0:0]} 50. Bf4 {[%emt 0:0:0]} h4 {[%emt 0:0:0]} 51. g4 {[%emt 0:0:0]} Nd5+ {[%emt 0:1:58]} 52. Kg5 {[%emt 0:0:0]} Nde7 {[%emt 0:1:17]} 53. Kh6 {[%emt 0:0:0]} Ke6 {[%emt 0:13:47]} 54. Bxc6 {[%emt 0:0:0]} Nxc6 {[%emt 0:0:9]} 55. Kxg6 {[%emt 0:0:0]} Nd4 {[%emt 0:0:13]} 56. Be3 {[%emt 0:0:35]} Nf3 {[%emt 0:0:22]} 57. Bf2 {[%emt 0:1:9]} Ke5 {[%emt 0:2:8]} 58. Kh5 {[%emt 0:2:41]} Ke6 {[%emt 0:0:33]} 59. Bxh4 {[%emt 0:0:40]} Ng1 {[%emt 0:0:6]} 60. Bg5 {[%emt 0:1:55]} Nxh3 {[%emt 0:0:12]} 61. Be3 {[%emt 0:15:7]} Ke5 {[%emt 0:16:23]} 62. Kh4 {[%emt 0:0:11]} Kd5 {[%emt 0:1:2]} 1-0